Workbook

Sheet 支出
A1: 附件2-2
A2: 蓬江区2025政府性基金预算支出调整表（按功能分类科目）
E3: 单位：万元
A4: 科目名称 | B4: 2025年支出调整
B5: 年初预算数 | C5: 第一次调整后预算数 | D5: 调整额 | E5: 第二次调整后预算数 | F5: 1-11月 | G5: 12月当月 | H5: 12月后来增加调整预算 | I5: 调平平衡表增加的数据 | J5: 调整金额 | K5: 全年调整预算
A6: 合计 | B6: =SUM(B7,B9,B22,B25,B27,B29,B33,B35,B40,B42,B46,B50,B53) -> 375,829 | C6: =SUM(C7,C9,C22,C25,C27,C29,C33,C35,C40,C42,C46,C50,C53) -> 439,942 | D6: =SUM(D7,D9,D20,D22,D25,D27,D29,D33,D35,D40,D42,D46,D50,D53,D55) -> 70,562 | E6: =SUM(E7,E9,E20,E22,E25,E27,E29,E33,E35,E40,E42,E46,E50,E53,E55) -> 510,504
A7: 一、国家电影事业发展专项资金安排的支出 | B7: =SUM(B8) -> 11 | C7: =SUM(C8) -> 11 | D7: =SUM(D8) -> 0 | E7: =SUM(E8) -> 11
A8: 其他国家电影事业发展专项资金支出 | B8: 11 | C8: 11 | D8: =E8-C8 -> 0 | E8: 11 | F8: 11 | K8: =SUM(F8:J8) -> 11
A9: 二、国有土地使用权出让收入安排的支出 | B9: =SUM(B10:B19) -> 191,231 | C9: =SUM(C10:C19) -> 191,231 | D9: =SUM(D10:D19) -> 21,903 | E9: =SUM(E10:E19) -> 213,134
A10: 征地和拆迁补偿支出 | B10: 20,000 | C10: 20,000 | D10: =E10-C10 -> 55,778 | E10: 75,778 | F10: 48066 | G10: 27712 | K10: 75778
A11: 土地开发支出 | B11: 21,218 | C11: 21,218 | D11: 13,174 | E11: 34,392 | F11: 34111 | G11: 281 | K11: 34392
A12: 城市建设支出 | B12: 60,596 | C12: 60,596 | D12: -55,788 | E12: 4,808 | F12: 6750 | G12: 58 | J12: -2000 | K12: 4808
A13: 农村基础设施建设支出 | B13: 1,970 | C13: 1,970 | D13: 1,851 | E13: 3,821 | F13: 847 | G13: 974 | J13: 2000 | K13: 3821
A14: 补助被征地农民支出 | B14: 20,750 | C14: 20,750 | D14: -20,449 | E14: 301 | F14: 185 | G14: 116 | K14: 301
A15: 土地出让业务支出 | B15: 1,354 | C15: 1,354 | D15: -908 | E15: 446 | F15: 352 | G15: 94 | K15: 446
A16: 农业生产发展支出 | B16: 179 | C16: 179 | D16: -179 | E16: 0 | G16: 0 | K16: 0
A17: 农村社会事业支出 | B17: 149 | C17: 149 | D17: -132 | E17: 17 | F17: 17 | G17: 0 | K17: 17
A18: 农业农村生态环境支出 | B18: 33 | C18: 33 | D18: 0 | E18: 33 | F18: 33 | G18: 0 | K18: 33
A19: 其他国有土地使用权出让收入安排的支出 | B19: 64,982 | C19: 64,982 | D19: 28,556 | E19: 93,538 | F19: 19230 | G19: 78223 | I19: =3569-140-2185-71 -> 1173 | J19: -5088 | K19: 93538
A20: 三、国有土地收益基金安排的支出 | D20: =SUM(D21) -> 0 | E20: =SUM(E21) -> 0 | G20: 0
A21: 其他国有土地收益基金安排的支出 | D21: =E21-C21 -> 0 | E21: =SUM(F21:J21) -> 0 | G21: 0
A22: 四、城市基础设施配套费安排的支出 | B22: =SUM(B23:B24) -> 5,947 | C22: =SUM(C23:C24) -> 5,947 | D22: =SUM(D23:D24) -> -4,898 | E22: =SUM(E23:E24) -> 1,049 | G22: 0
A23: 城市环境卫生 | B23: 1,907 | C23: 1,907 | D23: -1,706 | E23: 201 | F23: 201 | G23: 0 | K23: =SUM(F23:J23) -> 201
A24: 其他城市基础设施配套费安排的支出 | B24: 4,040 | C24: 4,040 | D24: -3,192 | E24: 848 | F24: 785 | G24: 63 | K24: 848
A25: 五、污水处理费安排的支出 | B25: =SUM(B26) -> 28,630 | C25: =SUM(C26) -> 28,630 | D25: =SUM(D26) -> -28,582 | E25: =SUM(E26) -> 48 | G25: 0
A26: 污水处理设施建设和运营 | B26: 28,630 | C26: 28,630 | D26: =E26-C26 -> -28,582 | E26: 48 | F26: 14173 | G26: 0 | J26: -14125 | K26: 48
A27: 六、小型水库移民扶助基金安排的支出 | B27: 0 | C27: 0 | D27: =SUM(D28) -> 0 | E27: =SUM(E28) -> 0 | G27: 0
A28: 基础设施建设和经济发展 | D28: 0 | E28: =SUM(F28:J28) -> 0 | G28: 0
A29: 七、彩票公益金安排的支出 | B29: =SUM(B30:B32) -> 1,748 | C29: =SUM(C30:C32) -> 1,748 | D29: =SUM(D30:D32) -> -68 | E29: =SUM(E30:E32) -> 1,680 | G29: 0
A30: 用于社会福利的彩票公益金支出 | B30: 510 | C30: 510 | D30: -301 | E30: 209 | F30: 166 | G30: 10 | H30: 33 | K30: =SUM(F30:J30) -> 209
A31: 用于体育事业的彩票公益金支出 | B31: 1,036 | C31: 1,036 | D31: 361 | E31: 1,397 | F31: 999 | G31: 87 | H31: =100+140+71 -> 311 | K31: 1397
A32: 用于残疾人事业的彩票公益金支出 | B32: 202 | C32: 202 | D32: -128 | E32: 74 | F32: 73 | G32: 1 | K32: 74
A33: 八、超长期特别国债安排的支出 | B33: =SUM(B34) -> 2,100 | C33: =SUM(C34) -> 2,100 | D33: =SUM(D34) -> 6,429 | E33: =SUM(E34) -> 8,529 | G33: 0
A34: 制造业 | B34: 2,100 | C34: 2,100 | D34: =E34-C34 -> 6,429 | E34: 8,529 | F34: 6344 | G34: 0 | H34: 2185 | K34: =SUM(F34:J34) -> 8529
A35: 九、彩票发行销售机构业务费安排的支出 | B35: =SUM(B36:B39) -> 136 | C35: =SUM(C36:C39) -> 136 | D35: =SUM(D36:D39) -> 45 | E35: =SUM(E36:E39) -> 181 | G35: 0
A36: 体育彩票发行机构的业务费支出 | D36: 0 | E36: 0 | G36: 0 | K36: 0
A37: 福利彩票销售机构的业务费支出 | B37: 56 | C37: 56 | D37: 110 | E37: 166 | F37: 159 | G37: 7 | K37: 166
A38: 体育彩票销售机构的业务费支出 | B38: 80 | C38: 80 | D38: -65 | E38: 15 | F38: 15 | G38: 0 | K38: 15
A39: 其他彩票发行销售机构业务费安排的支出 | D39: 0 | E39: 0 | G39: 0 | K39: 0
A40: 十、超长期特别国债安排的支出 | B40: =SUM(B41) -> 2,231 | C40: =SUM(C41) -> 2,231 | D40: =SUM(D41) -> 0 | E40: =SUM(E41) -> 2,231 | G40: 0
A41: 其他支出 | B41: 2,231 | C41: 2,231 | D41: =E41-C41 -> 0 | E41: 2,231 | F41: 2231 | G41: 0 | K41: =SUM(F41:J41) -> 2231
A42: 十一、地方政府专项债务付息支出 | B42: =SUM(B43:B45) -> 43,697 | C42: =SUM(C43:C45) -> 43,697 | D42: =SUM(D43:D45) -> -524 | E42: =SUM(E43:E45) -> 43,173 | G42: 0
A43: 国有土地使用权出让金债务付息支出 | B43: 3,324 | C43: 3,324 | D43: 0 | E43: 3,324 | F43: 3324 | G43: 0 | K43: 3324
A44: 土地储备专项债券付息支出 | B44: 5,543 | C44: 5,543 | D44: 0 | E44: 5,543 | F44: 5543 | G44: 0 | K44: 5543
A45: 其他地方自行试点项目收益专项债券付息支出 | B45: 34,830 | C45: 34,830 | D45: -524 | E45: 34,306 | F45: 33258 | G45: 1048 | K45: 34306
A46: 十二、地方政府专项债务发行费用支出 | B46: =SUM(B47:B49) -> 98 | C46: =SUM(C47:C49) -> 98 | D46: =SUM(D47:D49) -> 99 | E46: =SUM(E47:E49) -> 197 | G46: 0
A47: 国有土地使用权出让金债务发行费用支出 | B47: 1 | C47: 1 | D47: =E47-C47 -> 0 | E47: 1 | F47: 1 | G47: 0 | K47: =SUM(F47:J47) -> 1
A48: 土地储备专项债券发行费用支出 | B48: 1 | C48: 1 | D48: 108 | E48: 109 | F48: 109 | G48: 0 | K48: 109
A49: 其他地方自行试点项目收益专项债券发行费用支出 | B49: 96 | C49: 96 | D49: -9 | E49: 87 | F49: 87 | G49: 0 | K49: 87
A50: 十三、其他政府性基金及对应专项债务收入安排的支出 | B50: =SUM(B51) -> 100,000 | C50: =SUM(C51:C52) -> 164,113 | D50: =SUM(D51:D52) -> 75,887 | E50: =SUM(E51:E52) -> 240,000 | G50: 0
A51: 其他地方自行试点项目收益专项债券收入安排的支出 | B51: 100,000 | C51: 130,800 | D51: =E51-C51 -> 0 | E51: 130,800 | F51: 130800 | G51: 0 | K51: =SUM(F51:J51) -> 130800
A52: 其他政府性基金债务收入安排的支出 | C52: 33,313 | D52: =E52-C52 -> 75,887 | E52: 109,200 | F52: 109085 | G52: 115 | K52: 109200
A53: 十四、大中型水库移民后期扶持基金支出 | B53: 0 | C53: 0 | D53: =SUM(D54) -> 1 | E53: =SUM(E54) -> 1 | G53: 0
A54: 移民补助 | D54: =E54-C54 -> 1 | E54: 1 | F54: 1 | G54: 0 | K54: 1
A55: 十五、超长期特别国债安排的支出 | D55: =SUM(D56) -> 270 | E55: =SUM(E56) -> 270 | G55: 0
A56: 其他住房保障支出 | D56: =E56-C56 -> 270 | E56: 270 | F56: 30 | G56: 240 | K56: =SUM(F56:J56) -> 270
